[Event "*** Titled Tuesday Blitz"]
[Site "Chess.com"]
[Date "2020.04.21"]
[Round "1"]
[White "ChessTraining77"]
[Black "politeplayer"]
[Result "1-0"]
[WhiteElo "2603"]
[BlackElo "2173"]
[TimeControl "180+1"]
[EndTime "10:06:56 PDT"]
[Termination "ChessTraining77 won by resignation"]

1. e4 {[%clk 0:03:00.9]} 1... e6 {[%clk 0:02:59.7]} 2. d3 {[%clk 0:03:00.2]}
2... d5 {[%clk 0:02:58.8]} 3. Qe2 {[%clk 0:03:00.2]} 3... Bd6 {[%clk 0:02:50]}
4. e5 {[%clk 0:02:56.9]} 4... Be7 {[%clk 0:02:44.8]} 5. Nf3 {[%clk 0:02:55.9]}
5... c5 {[%clk 0:02:41.9]} 6. h4 {[%clk 0:02:54.8]} 6... Nc6 {[%clk 0:02:41.8]}
7. g3 {[%clk 0:02:54.4]} 7... h6 {[%clk 0:02:41.5]} 8. Bg2 {[%clk 0:02:53.6]}
8... Qa5+ {[%clk 0:02:38.8]} 9. c3 {[%clk 0:02:52.5]} 9... d4 {[%clk 0:02:37.4]}
10. O-O {[%clk 0:02:51.2]} 10... Bd7 {[%clk 0:02:34.7]} 11. cxd4 {[%clk
0:02:27.8]} 11... cxd4 {[%clk 0:02:25]} 12. Nbd2 {[%clk 0:02:25.2]} 12... Rc8
{[%clk 0:02:17.8]} 13. Nc4 {[%clk 0:02:23.5]} 13... Qa6 {[%clk 0:02:17.2]} 14.
Bf4 {[%clk 0:02:19.3]} 14... b5 {[%clk 0:02:13.6]} 15. Nd6+ {[%clk 0:02:17.7]}
15... Bxd6 {[%clk 0:02:13.9]} 16. exd6 {[%clk 0:02:17.1]} 16... Nf6 {[%clk
0:02:14.4]} 17. Ne5 {[%clk 0:02:16.1]} 17... Nxe5 {[%clk 0:01:58.2]} 18. Bxe5
{[%clk 0:02:15.2]} 18... Bc6 {[%clk 0:01:54.5]} 19. Rac1 {[%clk 0:01:27.8]}
19... Bxg2 {[%clk 0:01:48.6]} 20. Kxg2 {[%clk 0:01:27.1]} 20... Kd7 {[%clk
0:01:32.7]} 21. Qf3 {[%clk 0:01:22.3]} 21... Rhf8 {[%clk 0:01:14]} 22. Rc7+
{[%clk 0:01:15.7]} 22... Rxc7 {[%clk 0:01:11.7]} 23. dxc7 {[%clk 0:01:15.6]}
23... Qc6 {[%clk 0:00:46.8]} 24. Qxc6+ {[%clk 0:01:05.5]} 24... Kxc6 {[%clk
0:00:46.5]} 25. Rc1+ {[%clk 0:01:04.9]} 25... Kb7 {[%clk 0:00:38]} 26. Bxd4
{[%clk 0:01:04]} 26... Nd5 {[%clk 0:00:35.4]} 27. Bxg7 {[%clk 0:01:02.4]} 27...
Rg8 {[%clk 0:00:32.1]} 28. Bxh6 {[%clk 0:01:01.9]} 28... Nxc7 {[%clk 0:00:32.4]}
29. Bf4 {[%clk 0:00:56.6]} 29... Nd5 {[%clk 0:00:30.6]} 30. Kf3 {[%clk
0:00:55.9]} 30... f6 {[%clk 0:00:28.9]} 31. h5 {[%clk 0:00:53.6]} 31... e5
{[%clk 0:00:28.1]} 32. Be3 {[%clk 0:00:52.7]} 32... Nb4 {[%clk 0:00:27.8]} 33.
Ke4 {[%clk 0:00:51.5]} 33... Nxa2 {[%clk 0:00:27.3]} 34. Ra1 {[%clk 0:00:49]}
34... Nb4 {[%clk 0:00:26.1]} 35. Rxa7+ {[%clk 0:00:48.8]} 35... Kb8 {[%clk
0:00:24.9]} 36. Rf7 {[%clk 0:00:47.1]} 36... Nc6 {[%clk 0:00:20.9]} 37. h6
{[%clk 0:00:44.4]} 37... Nd4 {[%clk 0:00:16]} 38. Bxd4 {[%clk 0:00:43.1]} 38...
Rg4+ {[%clk 0:00:12.9]} 39. Kf5 {[%clk 0:00:42.2]} 39... Rxd4 {[%clk 0:00:12.5]}
40. h7 {[%clk 0:00:42.2]} 40... Rxd3 {[%clk 0:00:12.8]} 1-0

[Event "*** Titled Tuesday Blitz"]
[Site "Chess.com"]
[Date "2020.04.21"]
[Round "1"]
[White "JLRHei"]
[Black "johnathan113"]
[Result "0-1"]
[WhiteElo "2285"]
[BlackElo "2620"]
[TimeControl "180+1"]
[EndTime "10:06:57 PDT"]
[Termination "johnathan113 won by resignation"]

1. d4 {[%clk 0:03:00.9]} 1... g6 {[%clk 0:02:59.4]} 2. c4 {[%clk 0:03:01.1]}
2... Nf6 {[%clk 0:03:00.3]} 3. Nf3 {[%clk 0:03:01.7]} 3... Bg7 {[%clk
0:03:00.7]} 4. g3 {[%clk 0:03:02.6]} 4... c5 {[%clk 0:03:01.4]} 5. Bg2 {[%clk
0:03:03.5]} 5... cxd4 {[%clk 0:03:02.3]} 6. Nxd4 {[%clk 0:03:03.3]} 6... O-O
{[%clk 0:03:03.2]} 7. O-O {[%clk 0:03:03.3]} 7... Nc6 {[%clk 0:03:04]} 8. Nxc6
{[%clk 0:03:03.4]} 8... dxc6 {[%clk 0:03:02.8]} 9. Qxd8 {[%clk 0:03:01.2]} 9...
Rxd8 {[%clk 0:03:03.7]} 10. Nc3 {[%clk 0:03:01.8]} 10... Be6 {[%clk 0:02:56.7]}
11. c5 {[%clk 0:02:47.4]} 11... Nd5 {[%clk 0:02:19.4]} 12. Ne4 {[%clk
0:02:45.7]} 12... Nb4 {[%clk 0:02:10.4]} 13. Bf4 {[%clk 0:02:26.6]} 13... Nxa2
{[%clk 0:01:52.6]} 14. Bc7 {[%clk 0:01:45]} 14... Rd7 {[%clk 0:01:49.6]} 15. Ba5
{[%clk 0:01:44]} 15... Bxb2 {[%clk 0:01:45.9]} 16. Rab1 {[%clk 0:01:39.9]} 16...
Bg7 {[%clk 0:01:46.2]} 17. h4 {[%clk 0:01:13.8]} 17... Bc4 {[%clk 0:01:43.2]}
18. Bf3 {[%clk 0:00:55]} 18... h6 {[%clk 0:01:40.9]} 19. g4 {[%clk 0:00:52.3]}
19... f5 {[%clk 0:01:38.5]} 20. gxf5 {[%clk 0:00:51.5]} 20... gxf5 {[%clk
0:01:39.4]} 21. Ng3 {[%clk 0:00:52.1]} 21... e6 {[%clk 0:01:37.4]} 22. Nh5
{[%clk 0:00:46.8]} 22... Be5 {[%clk 0:01:31.9]} 23. Kh1 {[%clk 0:00:42.5]} 23...
Kh7 {[%clk 0:01:30.6]} 24. Rg1 {[%clk 0:00:29.7]} 24... Rd4 {[%clk 0:01:26.9]}
25. Rxb7+ {[%clk 0:00:24.1]} 25... Kh8 {[%clk 0:01:26.5]} 26. Rg6 {[%clk
0:00:15.3]} 26... Rxh4+ {[%clk 0:01:24.4]} 27. Kg1 {[%clk 0:00:15.5]} 27... Rg8
{[%clk 0:01:15.9]} 28. Rxg8+ {[%clk 0:00:15.3]} 28... Kxg8 {[%clk 0:01:16.8]}
29. Rxa7 {[%clk 0:00:15.8]} 29... Nc1 {[%clk 0:01:13.5]} 30. Ra8+ {[%clk
0:00:14]} 30... Kf7 {[%clk 0:01:13.1]} 31. e3 {[%clk 0:00:14.1]} 31... Ne2+
{[%clk 0:01:05.5]} 32. Kf1 {[%clk 0:00:12.8]} 32... Ng3+ {[%clk 0:01:00.1]} 33.
Kg2 {[%clk 0:00:13.7]} 33... Nxh5 {[%clk 0:01:00.6]} 34. Ra7+ {[%clk 0:00:13.4]}
34... Kg6 {[%clk 0:00:58.2]} 35. Bxc6 {[%clk 0:00:14.3]} 35... Nf6 {[%clk
0:00:56.1]} 36. Bd8 {[%clk 0:00:11.8]} 36... Rg4+ {[%clk 0:00:50.3]} 37. Kf3
{[%clk 0:00:11.8]} 37... Bd5+ {[%clk 0:00:47.2]} 38. Ke2 {[%clk 0:00:11.7]}
38... Bxc6 {[%clk 0:00:46.3]} 0-1

[Event "*** Titled Tuesday Blitz"]
[Site "Chess.com"]
[Date "2020.04.21"]
[Round "1"]
[White "LuckSlayeer"]
[Black "Chessdemon2019"]
[Result "0-1"]
[WhiteElo "2517"]
[BlackElo "2152"]
[TimeControl "180+1"]
[EndTime "10:06:57 PDT"]
[Termination "Chessdemon2019 won by resignation"]

1. e4 {[%clk 0:02:59.7]} 1... c5 {[%clk 0:02:59.4]} 2. Nf3 {[%clk 0:02:59.4]}
2... d6 {[%clk 0:02:59.5]} 3. d4 {[%clk 0:02:59.6]} 3... cxd4 {[%clk 0:02:59.7]}
4. Nxd4 {[%clk 0:03:00.5]} 4... Nf6 {[%clk 0:02:59.9]} 5. Nc3 {[%clk 0:03:00.7]}
5... g6 {[%clk 0:03:00.5]} 6. Be3 {[%clk 0:03:00.5]} 6... Bg7 {[%clk 0:03:01.2]}
7. f3 {[%clk 0:03:01]} 7... Nc6 {[%clk 0:03:01.7]} 8. Qd2 {[%clk 0:03:01.3]}
8... O-O {[%clk 0:03:02]} 9. Bc4 {[%clk 0:03:01.9]} 9... Bd7 {[%clk 0:03:02.1]}
10. Bb3 {[%clk 0:03:02.3]} 10... Rc8 {[%clk 0:03:01.8]} 11. O-O-O {[%clk
0:03:02.2]} 11... Ne5 {[%clk 0:03:02.1]} 12. Kb1 {[%clk 0:03:02]} 12... Re8
{[%clk 0:03:00.3]} 13. h4 {[%clk 0:02:57.8]} 13... h5 {[%clk 0:03:00.2]} 14. g4
{[%clk 0:02:58]} 14... hxg4 {[%clk 0:03:00.3]} 15. h5 {[%clk 0:02:58.5]} 15...
Nxh5 {[%clk 0:03:00.7]} 16. Rdg1 {[%clk 0:02:58.7]} 16... e6 {[%clk 0:02:56]}
17. Bh6 {[%clk 0:02:06.7]} 17... Qf6 {[%clk 0:02:48.9]} 18. fxg4 {[%clk
0:01:46.8]} 18... Bxh6 {[%clk 0:02:46]} 19. Qxh6 {[%clk 0:01:45.3]} 19... Qg7
{[%clk 0:02:45.7]} 20. Qd2 {[%clk 0:00:57.2]} 20... Nf6 {[%clk 0:02:42.8]} 21.
Qe2 {[%clk 0:00:54.4]} 21... Nfxg4 {[%clk 0:02:27.9]} 22. Rh4 {[%clk 0:00:36.5]}
22... Nf6 {[%clk 0:02:19.1]} 23. Rgh1 {[%clk 0:00:35.6]} 23... Nh5 {[%clk
0:02:05.2]} 24. Nf3 {[%clk 0:00:19.2]} 24... Nxf3 {[%clk 0:01:45.7]} 25. Qxf3
{[%clk 0:00:20.1]} 25... Rc5 {[%clk 0:01:45.3]} 26. Ne2 {[%clk 0:00:13.8]} 26...
Bc6 {[%clk 0:01:39.1]} 27. Ng3 {[%clk 0:00:06.9]} 27... Nxg3 {[%clk 0:01:28.4]}
28. Qxg3 {[%clk 0:00:07.4]} 28... Rh5 {[%clk 0:01:12.8]} 29. Rxh5 {[%clk
0:00:07.2]} 29... gxh5 {[%clk 0:01:13.1]} 30. Qf2 {[%clk 0:00:07.5]} 30... Bxe4
{[%clk 0:01:11.3]} 31. Rg1 {[%clk 0:00:07.3]} 31... Bg6 {[%clk 0:01:11.6]} 32.
Ka1 {[%clk 0:00:06.3]} 32... b6 {[%clk 0:01:10.1]} 33. c3 {[%clk 0:00:06.1]}
33... Rc8 {[%clk 0:01:09.3]} 34. Bc2 {[%clk 0:00:06.3]} 34... Kh7 {[%clk
0:01:04.7]} 35. Qh4 {[%clk 0:00:04.4]} 35... Rc5 {[%clk 0:01:03.9]} 36. Qh2
{[%clk 0:00:02.6]} 36... Qe5 {[%clk 0:01:00.4]} 37. Qxe5 {[%clk 0:00:01.2]}
37... Rxe5 {[%clk 0:01:00.2]} 38. Bxg6+ {[%clk 0:00:01.9]} 38... fxg6 {[%clk
0:01:00.4]} 39. Rf1 {[%clk 0:00:02.6]} 39... Kh6 {[%clk 0:00:59.8]} 40. a4
{[%clk 0:00:03.5]} 40... h4 {[%clk 0:01:00]} 41. b4 {[%clk 0:00:03.5]} 41... h3
{[%clk 0:01:00.4]} 42. Rh1 {[%clk 0:00:03.1]} 42... Rh5 {[%clk 0:01:00.2]} 43.
b5 {[%clk 0:00:02.3]} 43... g5 {[%clk 0:00:59.9]} 44. Kb2 {[%clk 0:00:02.1]}
44... h2 {[%clk 0:01:00]} 45. Kb3 {[%clk 0:00:02.7]} 45... g4 {[%clk 0:01:00.4]}
46. Kb4 {[%clk 0:00:02.6]} 46... g3 {[%clk 0:01:00.9]} 47. a5 {[%clk 0:00:03.5]}
47... g2 {[%clk 0:01:00.5]} 48. axb6 {[%clk 0:00:04.4]} 48... gxh1=Q {[%clk
0:01:00]} 0-1

[Event "*** Titled Tuesday Blitz"]
[Site "Chess.com"]
[Date "2020.04.21"]
[Round "1"]
[White "mortngabriel"]
[Black "OparinGrigoriy"]
[Result "0-1"]
[WhiteElo "2457"]
[BlackElo "2901"]
[TimeControl "180+1"]
[EndTime "10:06:58 PDT"]
[Termination "OparinGrigoriy won by resignation"]

1. d4 {[%clk 0:02:58.6]} 1... Nf6 {[%clk 0:02:54.7]} 2. c4 {[%clk 0:02:56.9]}
2... e6 {[%clk 0:02:55.6]} 3. Nf3 {[%clk 0:02:56.7]} 3... Bb4+ {[%clk
0:02:55.7]} 4. Bd2 {[%clk 0:02:53.6]} 4... a5 {[%clk 0:02:56.1]} 5. g3 {[%clk
0:02:52.8]} 5... O-O {[%clk 0:02:55.9]} 6. Bg2 {[%clk 0:02:53]} 6... d5 {[%clk
0:02:56.1]} 7. cxd5 {[%clk 0:02:50.2]} 7... exd5 {[%clk 0:02:56.1]} 8. O-O
{[%clk 0:02:50.2]} 8... c6 {[%clk 0:02:56.3]} 9. Nc3 {[%clk 0:02:39.3]} 9... Re8
{[%clk 0:02:56.1]} 10. a3 {[%clk 0:02:27.5]} 10... Bd6 {[%clk 0:02:55.6]} 11.
Bf4 {[%clk 0:02:18]} 11... Bf5 {[%clk 0:02:50.5]} 12. Ne5 {[%clk 0:02:11.9]}
12... Qe7 {[%clk 0:02:49.4]} 13. f3 {[%clk 0:02:01.4]} 13... Nbd7 {[%clk
0:02:49.1]} 14. e4 {[%clk 0:02:00.2]} 14... dxe4 {[%clk 0:02:40.9]} 15. fxe4
{[%clk 0:02:01.1]} 15... Be6 {[%clk 0:02:36.6]} 16. Nxd7 {[%clk 0:01:48.7]}
16... Nxd7 {[%clk 0:02:37.5]} 17. Bxd6 {[%clk 0:01:41.4]} 17... Qxd6 {[%clk
0:02:38.4]} 18. e5 {[%clk 0:01:39.6]} 18... Qe7 {[%clk 0:02:38.4]} 19. Ne4
{[%clk 0:01:26.9]} 19... Red8 {[%clk 0:02:38]} 20. Nd6 {[%clk 0:01:07.8]} 20...
Nb6 {[%clk 0:02:37.8]} 21. Rc1 {[%clk 0:00:53.8]} 21... Nc8 {[%clk 0:02:37]} 22.
Nf5 {[%clk 0:00:47.8]} 22... Bxf5 {[%clk 0:02:36.6]} 23. Rxf5 {[%clk 0:00:48.7]}
23... Nb6 {[%clk 0:02:36.7]} 24. Qb3 {[%clk 0:00:40.3]} 24... Nd5 {[%clk
0:02:35.8]} 25. Rcf1 {[%clk 0:00:39.7]} 25... a4 {[%clk 0:02:32.4]} 26. Qf3
{[%clk 0:00:27.2]} 26... Rf8 {[%clk 0:02:32.2]} 27. Qd3 {[%clk 0:00:18.8]} 27...
Rad8 {[%clk 0:02:31.4]} 28. h4 {[%clk 0:00:17.3]} 28... Nc7 {[%clk 0:02:30.8]}
29. Qc4 {[%clk 0:00:15.9]} 29... Ne6 {[%clk 0:02:29.4]} 30. d5 {[%clk
0:00:13.7]} 30... cxd5 {[%clk 0:02:28.5]} 31. Bxd5 {[%clk 0:00:14.4]} 31... Rde8
{[%clk 0:02:16.8]} 32. Kh2 {[%clk 0:00:11.6]} 32... h6 {[%clk 0:02:14.1]} 33. h5
{[%clk 0:00:10.3]} 33... Ng5 {[%clk 0:02:12.4]} 34. R1f2 {[%clk 0:00:09.1]}
34... Rd8 {[%clk 0:02:10.5]} 35. Rd2 {[%clk 0:00:06.9]} 35... Kh8 {[%clk
0:02:09.2]} 36. Rdf2 {[%clk 0:00:06.6]} 36... Kg8 {[%clk 0:02:06.2]} 37. Bg2
{[%clk 0:00:06.6]} 37... Qd7 {[%clk 0:02:00.8]} 38. R5f4 {[%clk 0:00:04.8]}
38... b5 {[%clk 0:02:00.3]} 39. Qb4 {[%clk 0:00:04.6]} 39... Ne6 {[%clk
0:01:59.4]} 40. Rf5 {[%clk 0:00:04]} 40... Qd3 {[%clk 0:01:57.7]} 41. Qg4 {[%clk
0:00:03.5]} 41... Rd4 {[%clk 0:01:55]} 42. Qf3 {[%clk 0:00:01.5]} 42... Qxf3
{[%clk 0:01:53.8]} 43. Bxf3 {[%clk 0:00:02.4]} 43... Ng5 {[%clk 0:01:54.4]} 44.
Bg2 {[%clk 0:00:02.3]} 44... b4 {[%clk 0:01:54.4]} 45. R5f4 {[%clk 0:00:02.4]}
45... Rfd8 {[%clk 0:01:53.6]} 46. axb4 {[%clk 0:00:02.5]} 46... Ne6 {[%clk
0:01:53]} 47. Rxd4 {[%clk 0:00:02.6]} 47... Rxd4 {[%clk 0:01:53.9]} 48. Re2
{[%clk 0:00:02.7]} 48... Rxb4 {[%clk 0:01:54]} 49. Rd2 {[%clk 0:00:03.1]} 49...
Kf8 {[%clk 0:01:53.4]} 50. Bd5 {[%clk 0:00:03]} 50... Ng5 {[%clk 0:01:52.3]} 51.
Bg2 {[%clk 0:00:02.4]} 51... Ke7 {[%clk 0:01:51.1]} 52. Rc2 {[%clk 0:00:03.3]}
52... Ke6 {[%clk 0:01:51.2]} 53. Rc7 {[%clk 0:00:03.4]} 53... Kxe5 {[%clk
0:01:50.5]} 54. Rc6 {[%clk 0:00:04.3]} 54... Rxb2 {[%clk 0:01:50.4]} 55. Rc5+
{[%clk 0:00:04.6]} 55... Kd6 {[%clk 0:01:49.1]} 56. Ra5 {[%clk 0:00:05.5]} 56...
Ra2 {[%clk 0:01:46.8]} 57. Ra6+ {[%clk 0:00:05.1]} 57... Kc5 {[%clk 0:01:46.5]}
58. Ra7 {[%clk 0:00:04.3]} 58... a3 {[%clk 0:01:46.7]} 59. Kg1 {[%clk
0:00:04.2]} 59... Ra1+ {[%clk 0:01:44.6]} 60. Bf1 {[%clk 0:00:05.1]} 60... Nf3+
{[%clk 0:01:42.1]} 61. Kf2 {[%clk 0:00:06]} 61... Ne5 {[%clk 0:01:41.9]} 62. Be2
{[%clk 0:00:05.9]} 62... Kb6 {[%clk 0:01:41.4]} 63. Ra8 {[%clk 0:00:05.6]} 63...
a2 {[%clk 0:01:41.2]} 64. Ke3 {[%clk 0:00:05.8]} 64... Nc6 {[%clk 0:01:40]} 65.
Ra3 {[%clk 0:00:05.5]} 65... Nb4 {[%clk 0:01:40]} 66. Rb3 {[%clk 0:00:05.4]}
66... Rb1 {[%clk 0:01:39.9]} 0-1

[Event "*** Titled Tuesday Blitz"]
[Site "Chess.com"]
[Date "2020.04.21"]
[Round "1"]
[White "Stewie_89"]
[Black "agrigo3"]
[Result "1-0"]
[WhiteElo "2632"]
[BlackElo "2306"]
[TimeControl "180+1"]
[EndTime "10:06:59 PDT"]
[Termination "Stewie_89 won on time"]

1. e4 {[%clk 0:02:59.6]} 1... d6 {[%clk 0:02:59.9]} 2. d4 {[%clk 0:02:58.5]}
2... Nf6 {[%clk 0:03:00.4]} 3. Nc3 {[%clk 0:02:57.2]} 3... g6 {[%clk 0:03:00.6]}
4. g3 {[%clk 0:02:55.9]} 4... Bg7 {[%clk 0:02:59.9]} 5. Bg2 {[%clk 0:02:56.2]}
5... O-O {[%clk 0:02:59.9]} 6. Nge2 {[%clk 0:02:56.3]} 6... c6 {[%clk
0:02:56.2]} 7. O-O {[%clk 0:02:50.6]} 7... e5 {[%clk 0:02:54.8]} 8. h3 {[%clk
0:02:50.2]} 8... Be6 {[%clk 0:02:39.1]} 9. Be3 {[%clk 0:02:45.3]} 9... a5 {[%clk
0:02:38.4]} 10. f4 {[%clk 0:02:38.5]} 10... Nbd7 {[%clk 0:02:32.7]} 11. Qd2
{[%clk 0:02:08.7]} 11... Bc4 {[%clk 0:02:31.9]} 12. Rf2 {[%clk 0:02:05.4]} 12...
Qc7 {[%clk 0:02:23.6]} 13. b3 {[%clk 0:01:50]} 13... Ba6 {[%clk 0:02:22.7]} 14.
fxe5 {[%clk 0:01:43.2]} 14... dxe5 {[%clk 0:02:22.1]} 15. Bh6 {[%clk 0:01:43.6]}
15... exd4 {[%clk 0:02:10]} 16. Bxg7 {[%clk 0:01:38.3]} 16... Kxg7 {[%clk
0:01:58.7]} 17. Qxd4 {[%clk 0:01:37.5]} 17... Qe5 {[%clk 0:01:48.1]} 18. Rd1
{[%clk 0:01:22.7]} 18... Qxd4 {[%clk 0:01:40.4]} 19. Nxd4 {[%clk 0:01:21.9]}
19... Ne5 {[%clk 0:01:39.9]} 20. Rfd2 {[%clk 0:01:16.4]} 20... h5 {[%clk
0:01:24.7]} 21. Nf3 {[%clk 0:01:15.9]} 21... Rfe8 {[%clk 0:01:17.4]} 22. Nd4
{[%clk 0:01:02.9]} 22... Re7 {[%clk 0:01:14.2]} 23. Na4 {[%clk 0:01:01.9]} 23...
Nfd7 {[%clk 0:01:11.2]} 24. c4 {[%clk 0:01:00.8]} 24... Rae8 {[%clk 0:00:58.2]}
25. Nc3 {[%clk 0:01:00.5]} 25... Nc5 {[%clk 0:00:53.3]} 26. Nf3 {[%clk
0:00:56.7]} 26... Nxf3+ {[%clk 0:00:26.4]} 27. Bxf3 {[%clk 0:00:57.6]} 27... Re5
{[%clk 0:00:12.9]} 28. Kf2 {[%clk 0:00:56.3]} 28... R5e7 {[%clk 0:00:10.5]} 29.
Rd6 {[%clk 0:00:45.4]} 29... Re6 {[%clk 0:00:07.6]} 30. Rd8 {[%clk 0:00:44.5]}
30... Kf8 {[%clk 0:00:05.9]} 31. Rxe8+ {[%clk 0:00:43.7]} 31... Kxe8 {[%clk
0:00:05.3]} 32. Ke3 {[%clk 0:00:44.2]} 32... Re7 {[%clk 0:00:03.5]} 33. g4
{[%clk 0:00:37.4]} 33... hxg4 {[%clk 0:00:02.7]} 34. hxg4 {[%clk 0:00:37.3]}
34... g5 {[%clk 0:00:02.9]} 35. Rh1 {[%clk 0:00:36.7]} 35... f6 {[%clk
0:00:01.4]} 36. Rh6 {[%clk 0:00:35.5]} 1-0

[Event "*** Titled Tuesday Blitz"]
[Site "Chess.com"]
[Date "2020.04.21"]
[Round "1"]
[White "GMMatamoros"]
[Black "eldidi20"]
[Result "1-0"]
[WhiteElo "2527"]
[BlackElo "2126"]
[TimeControl "180+1"]
[EndTime "10:07:00 PDT"]
[Termination "GMMatamoros won by resignation"]

1. Nf3 {[%clk 0:03:00.2]} 1... Nf6 {[%clk 0:02:59.2]} 2. c4 {[%clk 0:03:00.3]}
2... g6 {[%clk 0:02:58.3]} 3. g3 {[%clk 0:03:00.5]} 3... Bg7 {[%clk 0:02:58]} 4.
Bg2 {[%clk 0:03:01.2]} 4... O-O {[%clk 0:02:57.8]} 5. O-O {[%clk 0:03:01.7]}
5... d6 {[%clk 0:02:58]} 6. d4 {[%clk 0:03:01.5]} 6... Nc6 {[%clk 0:02:58.1]} 7.
Nc3 {[%clk 0:03:01.8]} 7... a6 {[%clk 0:02:58.2]} 8. d5 {[%clk 0:03:02]} 8...
Na5 {[%clk 0:02:58]} 9. b3 {[%clk 0:03:02.2]} 9... c5 {[%clk 0:02:58.2]} 10.
dxc6 {[%clk 0:03:01.8]} 10... Nxc6 {[%clk 0:02:56.7]} 11. Bb2 {[%clk 0:03:01.7]}
11... Bf5 {[%clk 0:02:55.5]} 12. Qc1 {[%clk 0:03:01.6]} 12... Rc8 {[%clk
0:02:40.9]} 13. Rd1 {[%clk 0:03:01.2]} 13... Qa5 {[%clk 0:02:32.9]} 14. Nd5
{[%clk 0:03:00.9]} 14... Nxd5 {[%clk 0:02:23.5]} 15. Bxg7 {[%clk 0:03:00.7]}
15... Kxg7 {[%clk 0:02:22.8]} 16. Rxd5 {[%clk 0:03:01.1]} 16... Qc7 {[%clk
0:02:11]} 17. h4 {[%clk 0:02:52.2]} 17... Be6 {[%clk 0:02:00.3]} 18. Rd1 {[%clk
0:02:51.6]} 18... h5 {[%clk 0:01:59.8]} 19. Ng5 {[%clk 0:02:51]} 19... Bg4
{[%clk 0:01:55.4]} 20. Ne4 {[%clk 0:02:48]} 20... b5 {[%clk 0:01:43.2]} 21. Qb2+
{[%clk 0:02:33.3]} 21... Kg8 {[%clk 0:01:42.1]} 22. Rxd6 {[%clk 0:02:26.4]}
22... f6 {[%clk 0:00:42.6]} 23. cxb5 {[%clk 0:01:36.9]} 23... exd6 {[%clk
0:00:39.6]} 24. bxc6 {[%clk 0:01:35.5]} 24... Qe7 {[%clk 0:00:33]} 25. Nc3
{[%clk 0:01:34.2]} 25... Be6 {[%clk 0:00:31]} 26. Rd1 {[%clk 0:01:31.1]} 26...
Rfe8 {[%clk 0:00:30]} 27. e3 {[%clk 0:01:30.7]} 27... Kg7 {[%clk 0:00:27.8]} 28.
Rd4 {[%clk 0:01:26.8]} 28... Rc7 {[%clk 0:00:25.1]} 29. b4 {[%clk 0:01:25.1]}
29... Rb8 {[%clk 0:00:24.7]} 30. a4 {[%clk 0:01:23.5]} 30... d5 {[%clk
0:00:16.1]} 31. Bxd5 {[%clk 0:01:22]} 31... Qf7 {[%clk 0:00:11.5]} 32. Qd2
{[%clk 0:00:56.2]} 32... Rd8 {[%clk 0:00:08.9]} 33. Bxe6 {[%clk 0:00:53.3]}
33... Rxd4 {[%clk 0:00:09.1]} 34. Qxd4 {[%clk 0:00:53.5]} 34... Qxe6 {[%clk
0:00:09.6]} 35. b5 {[%clk 0:00:53.8]} 35... axb5 {[%clk 0:00:10.4]} 36. axb5
{[%clk 0:00:54.5]} 36... Rc8 {[%clk 0:00:10.3]} 37. Nd5 {[%clk 0:00:50.4]} 37...
Kf7 {[%clk 0:00:10.2]} 38. c7 {[%clk 0:00:42.3]} 38... Qd6 {[%clk 0:00:09.9]}
39. b6 {[%clk 0:00:41.9]} 39... Qc6 {[%clk 0:00:10.4]} 40. Qxf6+ {[%clk
0:00:41.8]} 40... Qxf6 {[%clk 0:00:10.4]} 41. Nxf6 {[%clk 0:00:42.7]} 41... Kxf6
{[%clk 0:00:11]} 42. b7 {[%clk 0:00:42.5]} 1-0

[Event "*** Titled Tuesday Blitz"]
[Site "Chess.com"]
[Date "2020.04.21"]
[Round "1"]
[White "TigrVShlyape"]
[Black "ChristianAlm"]
[Result "1-0"]
[WhiteElo "2867"]
[BlackElo "2449"]
[TimeControl "180+1"]
[EndTime "10:07:02 PDT"]
[Termination "TigrVShlyape won by resignation"]

1. d4 {[%clk 0:03:00.9]} 1... Nf6 {[%clk 0:02:59.4]} 2. Nf3 {[%clk 0:02:59.7]}
2... d5 {[%clk 0:02:59.5]} 3. Bf4 {[%clk 0:02:56.5]} 3... g6 {[%clk 0:02:56.9]}
4. e3 {[%clk 0:02:53.5]} 4... Bg7 {[%clk 0:02:56.6]} 5. h3 {[%clk 0:02:52.5]}
5... O-O {[%clk 0:02:56.4]} 6. c3 {[%clk 0:02:52.9]} 6... Bf5 {[%clk 0:02:53.7]}
7. Nbd2 {[%clk 0:02:51.9]} 7... Nbd7 {[%clk 0:02:51.4]} 8. Be2 {[%clk
0:02:50.1]} 8... c5 {[%clk 0:02:48.5]} 9. O-O {[%clk 0:02:48.5]} 9... Rc8 {[%clk
0:02:46.1]} 10. Qb3 {[%clk 0:02:46.6]} 10... Qb6 {[%clk 0:02:42.3]} 11. a4
{[%clk 0:02:42.2]} 11... c4 {[%clk 0:02:35.7]} 12. Qa2 {[%clk 0:02:39.1]} 12...
Qa5 {[%clk 0:02:32.9]} 13. Rfc1 {[%clk 0:02:36.2]} 13... Ne4 {[%clk 0:02:28.7]}
14. Nxe4 {[%clk 0:02:28.8]} 14... Bxe4 {[%clk 0:02:26.9]} 15. Nd2 {[%clk
0:02:21.2]} 15... Bf5 {[%clk 0:02:22]} 16. b3 {[%clk 0:02:20.3]} 16... cxb3
{[%clk 0:02:16]} 17. Qxb3 {[%clk 0:02:12]} 17... Nb6 {[%clk 0:01:47.4]} 18. Qb5
{[%clk 0:02:10.5]} 18... Qxb5 {[%clk 0:01:38.2]} 19. axb5 {[%clk 0:02:10.1]}
19... Ra8 {[%clk 0:01:36.3]} 20. Ra3 {[%clk 0:01:43.2]} 20... Rfc8 {[%clk
0:01:32]} 21. Rca1 {[%clk 0:01:41.2]} 21... h6 {[%clk 0:01:17.4]} 22. g4 {[%clk
0:01:40.1]} 22... Be6 {[%clk 0:01:07.8]} 23. Rxa7 {[%clk 0:01:22.7]} 23... Rxa7
{[%clk 0:01:08.7]} 24. Rxa7 {[%clk 0:01:22.4]} 24... Rxc3 {[%clk 0:01:08.3]} 25.
Rxb7 {[%clk 0:01:21.2]} 25... Nc4 {[%clk 0:00:51.5]} 26. Nxc4 {[%clk 0:01:00.3]}
26... dxc4 {[%clk 0:00:52.4]} 27. Bf3 {[%clk 0:00:54.2]} 27... Rc1+ {[%clk
0:00:43.3]} 28. Kg2 {[%clk 0:00:53.6]} 28... c3 {[%clk 0:00:44.2]} 29. Rc7
{[%clk 0:00:51.4]} 29... g5 {[%clk 0:00:34.5]} 30. Bg3 {[%clk 0:00:48.4]} 30...
Rb1 {[%clk 0:00:19.4]} 31. d5 {[%clk 0:00:33.2]} 31... Bd7 {[%clk 0:00:10.8]}
32. Rxd7 {[%clk 0:00:24]} 32... c2 {[%clk 0:00:10.2]} 33. Rd8+ {[%clk
0:00:23.5]} 33... Kh7 {[%clk 0:00:09.8]} 34. Be4+ {[%clk 0:00:23.1]} 1-0